[Event "*** Titled Tuesday 3|2 Blitz"]
[Site "Chess.com"]
[Date "2015.10.06"]
[Round "6"]
[White "kesarev"]
[Black "silverback96"]
[Result "1-0"]
[WhiteElo "2193"]
[BlackElo "1902"]
[TimeControl "180+2"]
[EndTime "12:20:18 PDT"]
[Termination "kesarev won on time"]

1. Nf3 {[%clk 0:03:01.9]} 1... c5 {[%clk 0:02:39]} 2. c4 {[%clk 0:03:01.7]} 2...
Nc6 {[%clk 0:02:39.4]} 3. g3 {[%clk 0:03:02.5]} 3... e5 {[%clk 0:02:38.9]} 4.
Nc3 {[%clk 0:03:02.6]} 4... g6 {[%clk 0:02:37.9]} 5. d3 {[%clk 0:03:02.8]} 5...
Bg7 {[%clk 0:02:39.1]} 6. Bg2 {[%clk 0:03:02.4]} 6... Nge7 {[%clk 0:02:39.8]} 7.
O-O {[%clk 0:03:01.2]} 7... d6 {[%clk 0:02:40.6]} 8. Rb1 {[%clk 0:02:59.2]} 8...
O-O {[%clk 0:02:40.8]} 9. a3 {[%clk 0:02:59.5]} 9... a5 {[%clk 0:02:42.4]} 10.
Ne1 {[%clk 0:02:50.5]} 10... Be6 {[%clk 0:02:41.8]} 11. Bg5 {[%clk 0:02:47.2]}
11... f6 {[%clk 0:02:41.9]} 12. Be3 {[%clk 0:02:47.4]} 12... f5 {[%clk
0:02:37.3]} 13. f4 {[%clk 0:02:47]} 13... b6 {[%clk 0:02:31.1]} 14. Nd5 {[%clk
0:02:29]} 14... Bxd5 {[%clk 0:02:09.9]} 15. cxd5 {[%clk 0:02:27.3]} 15... Nd4
{[%clk 0:02:10.5]} 16. Bd2 {[%clk 0:02:26.5]} 16... a4 {[%clk 0:02:06.7]} 17.
Bc3 {[%clk 0:01:59.6]} 17... b5 {[%clk 0:02:07]} 18. e3 {[%clk 0:01:53]} 18...
Nb3 {[%clk 0:02:06.4]} 19. Nc2 {[%clk 0:01:53.2]} 19... Qb6 {[%clk 0:02:07]} 20.
Kh1 {[%clk 0:01:42.4]} 20... Kh8 {[%clk 0:02:07.7]} 21. g4 {[%clk 0:01:16.1]}
21... fxg4 {[%clk 0:01:56.7]} 22. Qxg4 {[%clk 0:01:15.9]} 22... Nf5 {[%clk
0:01:57.5]} 23. Be4 {[%clk 0:01:07.9]} 23... exf4 {[%clk 0:01:58.3]} 24. Rxf4
{[%clk 0:01:06.8]} 24... Bxc3 {[%clk 0:01:56.8]} 25. bxc3 {[%clk 0:01:07]} 25...
Nd2 {[%clk 0:01:55.8]} 26. Rd1 {[%clk 0:00:56.6]} 26... Nxe4 {[%clk 0:01:52.6]}
27. dxe4 {[%clk 0:00:57.2]} 27... Ng7 {[%clk 0:01:53.8]} 28. Rdf1 {[%clk
0:00:56]} 28... Rxf4 {[%clk 0:01:52.8]} 29. exf4 {[%clk 0:00:54.7]} 29... Re8
{[%clk 0:01:44.7]} 30. e5 {[%clk 0:00:55.4]} 30... Qb7 {[%clk 0:01:41]} 31. Ne3
{[%clk 0:00:42.6]} 31... Nf5 {[%clk 0:01:35.4]} 32. Nxf5 {[%clk 0:00:29.2]}
32... Qxd5+ {[%clk 0:01:35.9]} 33. Qg2 {[%clk 0:00:28.6]} 33... Qxg2+ {[%clk
0:01:36.1]} 34. Kxg2 {[%clk 0:00:30.5]} 34... gxf5 {[%clk 0:01:36.3]} 35. exd6
{[%clk 0:00:32]} 35... Rd8 {[%clk 0:01:29.4]} 36. Rd1 {[%clk 0:00:32.5]} 36...
Kg7 {[%clk 0:01:09]} 37. Rd5 {[%clk 0:00:23]} 37... Kf6 {[%clk 0:01:09.6]} 38.
Kf2 {[%clk 0:00:21]} 38... Ke6 {[%clk 0:01:05.3]} 39. Rxc5 {[%clk 0:00:19.5]}
39... Rxd6 {[%clk 0:01:06]} 40. Re5+ {[%clk 0:00:18.2]} 40... Kf6 {[%clk
0:01:06.1]} 41. Rxb5 {[%clk 0:00:20.1]} 41... Rd2+ {[%clk 0:01:06.2]} 42. Ke3
{[%clk 0:00:21]} 42... Ra2 {[%clk 0:01:06.4]} 43. c4 {[%clk 0:00:20.4]} 43...
Rxa3+ {[%clk 0:01:06.7]} 44. Kd4 {[%clk 0:00:21.6]} 44... Ra1 {[%clk 0:01:02.3]}
45. Rb6+ {[%clk 0:00:22]} 45... Ke7 {[%clk 0:01:03]} 46. Ke5 {[%clk 0:00:21.4]}
46... a3 {[%clk 0:01:03.3]} 47. Rb7+ {[%clk 0:00:21.6]} 47... Kd8 {[%clk
0:01:00.5]} 48. Ra7 {[%clk 0:00:19.9]} 48... a2 {[%clk 0:01:00.6]} 49. Kxf5
{[%clk 0:00:20.9]} 49... Kc8 {[%clk 0:01:00.8]} 50. Kf6 {[%clk 0:00:21.4]} 50...
Kb8 {[%clk 0:00:59.4]} 51. Ra4 {[%clk 0:00:20.2]} 51... Kc7 {[%clk 0:01:00.3]}
52. f5 {[%clk 0:00:21.1]} 52... Kc6 {[%clk 0:00:58.9]} 53. Ra5 {[%clk 0:00:21]}
53... Kb6 {[%clk 0:00:59.5]} 54. Ra4 {[%clk 0:00:17.5]} 54... h5 {[%clk
0:00:58.6]} 55. h4 {[%clk 0:00:18]} 55... Kc5 {[%clk 0:00:58.5]} 56. Kf7 {[%clk
0:00:16.2]} 56... Kd4 {[%clk 0:00:53.9]} 57. f6 {[%clk 0:00:16.7]} 57... Kc5
{[%clk 0:00:46.8]} 58. Kf8 {[%clk 0:00:15.5]} 58... Kc6 {[%clk 0:00:47.6]} 59.
f7 {[%clk 0:00:16.2]} 59... Kb6 {[%clk 0:00:48.8]} 60. Ra3 {[%clk 0:00:12.5]}
60... Kc6 {[%clk 0:00:47]} 61. Kg8 {[%clk 0:00:08.3]} 61... Rg1+ {[%clk
0:00:46.2]} 62. Kh7 {[%clk 0:00:09.1]} 62... Rf1 {[%clk 0:00:42.8]} 63. Kg7
{[%clk 0:00:09.6]} 63... Rg1+ {[%clk 0:00:32.1]} 64. Kh6 {[%clk 0:00:10]} 64...
Rf1 {[%clk 0:00:33.4]} 65. Rxa2 {[%clk 0:00:10.6]} 65... Rxf7 {[%clk 0:00:34.7]}
66. Kxh5 {[%clk 0:00:11.7]} 66... Rg7 {[%clk 0:00:35.3]} 67. Kh6 {[%clk
0:00:11.9]} 67... Rg1 {[%clk 0:00:36.3]} 68. h5 {[%clk 0:00:12.7]} 68... Kc5
{[%clk 0:00:36]} 69. Rc2 {[%clk 0:00:13.2]} 69... Rg8 {[%clk 0:00:35.1]} 70. Kh7
{[%clk 0:00:14]} 70... Rg1 {[%clk 0:00:36]} 71. h6 {[%clk 0:00:15.2]} 71... Rg3
{[%clk 0:00:36.7]} 72. Kh8 {[%clk 0:00:16.2]} 72... Rg1 {[%clk 0:00:36.8]} 73.
h7 {[%clk 0:00:17.2]} 73... Rg3 {[%clk 0:00:36.2]} 74. Rc1 {[%clk 0:00:18.2]}
74... Rg2 {[%clk 0:00:35.7]} 75. Rf1 {[%clk 0:00:19.1]} 75... Kxc4 {[%clk
0:00:36.1]} 76. Rf7 {[%clk 0:00:20.5]} 76... Kd5 {[%clk 0:00:32.2]} 77. Rg7
{[%clk 0:00:21.5]} 77... Ra2 {[%clk 0:00:30.7]} 78. Kg8 {[%clk 0:00:22.6]} 78...
Ra8+ {[%clk 0:00:29.1]} 79. Kf7 {[%clk 0:00:23.4]} 79... Ra7+ {[%clk 0:00:15.6]}
80. Kg6 {[%clk 0:00:23.6]} 80... Ra6+ {[%clk 0:00:16.6]} 81. Kf5 {[%clk
0:00:22.9]} 1-0

[Event "*** Titled Tuesday 3|2 Blitz"]
[Site "Chess.com"]
[Date "2015.10.06"]
[Round "7"]
[White "Rating-Schmating"]
[Black "rikyshi"]
[Result "0-1"]
[WhiteElo "1968"]
[BlackElo "2130"]
[TimeControl "180+2"]
[EndTime "12:24:16 PDT"]
[Termination "rikyshi won by resignation"]

1. e4 {[%clk 0:03:01.9]} 1... e6 {[%clk 0:03:00.2]} 2. d4 {[%clk 0:03:02.5]}
2... d5 {[%clk 0:03:00.9]} 3. e5 {[%clk 0:03:03.6]} 3... c5 {[%clk 0:03:01.6]}
4. Nf3 {[%clk 0:03:03.2]} 4... cxd4 {[%clk 0:03:02.2]} 5. Bd3 {[%clk 0:03:02.6]}
5... Nc6 {[%clk 0:03:02.9]} 6. a3 {[%clk 0:03:02.1]} 6... Qc7 {[%clk 0:03:02.6]}
7. Qe2 {[%clk 0:03:02.7]} 7... Nge7 {[%clk 0:03:01.5]} 8. O-O {[%clk 0:03:03.8]}
8... Ng6 {[%clk 0:03:02.2]} 9. Re1 {[%clk 0:03:01.4]} 9... Be7 {[%clk
0:02:58.2]} 10. Nbd2 {[%clk 0:02:59.5]} 10... Nf4 {[%clk 0:02:53.6]} 11. Qf1
{[%clk 0:02:59.7]} 11... Nxd3 {[%clk 0:02:54.5]} 12. Qxd3 {[%clk 0:03:00.7]}
12... Bd7 {[%clk 0:02:52.1]} 13. Nf1 {[%clk 0:02:58.4]} 13... Rc8 {[%clk
0:02:47.7]} 14. Bd2 {[%clk 0:02:55]} 14... O-O {[%clk 0:02:45.9]} 15. Ng3 {[%clk
0:02:54.5]} 15... f6 {[%clk 0:02:38.3]} 16. Bf4 {[%clk 0:02:41.3]} 16... fxe5
{[%clk 0:02:33.5]} 17. Bxe5 {[%clk 0:02:37.5]} 17... Nxe5 {[%clk 0:02:28]} 18.
Nxe5 {[%clk 0:02:38.4]} 18... Bd6 {[%clk 0:02:10.1]} 19. Nxd7 {[%clk 0:02:26.6]}
19... Qxd7 {[%clk 0:02:12]} 20. Qxd4 {[%clk 0:02:24.8]} 20... Bc5 {[%clk
0:02:09.2]} 21. Qe5 {[%clk 0:02:21.1]} 21... Bxf2+ {[%clk 0:02:09]} 22. Kh1
{[%clk 0:02:22.5]} 22... Bxe1 {[%clk 0:02:10.1]} 23. Rxe1 {[%clk 0:02:23.9]}
23... Rxc2 {[%clk 0:02:10.4]} 24. Nh5 {[%clk 0:02:22.6]} 24... Rf5 {[%clk
0:02:09.3]} 25. Qb8+ {[%clk 0:02:21.7]} 25... Rc8 {[%clk 0:02:09.8]} 26. Qg3
{[%clk 0:02:22.3]} 26... Rxh5 {[%clk 0:02:10.8]} 0-1

[Event "*** Titled Tuesday 3|2 Blitz"]
[Site "Chess.com"]
[Date "2015.10.06"]
[Round "7"]
[White "AndreyOstrovskiy"]
[Black "stefanodinn"]
[Result "0-1"]
[WhiteElo "2354"]
[BlackElo "2136"]
[TimeControl "180+2"]
[EndTime "12:26:40 PDT"]
[Termination "stefanodinn won on time"]

1. e4 {[%clk 0:03:01.9]} 1... c5 {[%clk 0:03:00]} 2. Nf3 {[%clk 0:03:01.6]} 2...
d6 {[%clk 0:03:00.9]} 3. d4 {[%clk 0:03:02.7]} 3... cxd4 {[%clk 0:03:01.7]} 4.
Nxd4 {[%clk 0:03:04.6]} 4... Nf6 {[%clk 0:03:02.5]} 5. Nc3 {[%clk 0:03:06.3]}
5... a6 {[%clk 0:03:03.3]} 6. Bc4 {[%clk 0:03:07.5]} 6... e6 {[%clk 0:03:03.8]}
7. a4 {[%clk 0:03:08.1]} 7... Be7 {[%clk 0:02:57.4]} 8. O-O {[%clk 0:03:08.3]}
8... O-O {[%clk 0:02:48.7]} 9. Be3 {[%clk 0:03:08.8]} 9... d5 {[%clk 0:02:30.8]}
10. exd5 {[%clk 0:03:07.7]} 10... exd5 {[%clk 0:02:31.2]} 11. Bb3 {[%clk
0:03:08.9]} 11... Nc6 {[%clk 0:02:31.1]} 12. f3 {[%clk 0:03:07.3]} 12... Re8
{[%clk 0:02:30.8]} 13. Kh1 {[%clk 0:03:07.9]} 13... Bb4 {[%clk 0:02:18.2]} 14.
Bg5 {[%clk 0:02:58.5]} 14... Bxc3 {[%clk 0:02:14.6]} 15. bxc3 {[%clk 0:02:59.3]}
15... Be6 {[%clk 0:02:02.4]} 16. a5 {[%clk 0:02:57.7]} 16... h6 {[%clk 0:01:59]}
17. Bh4 {[%clk 0:02:55.1]} 17... Rc8 {[%clk 0:01:37.3]} 18. Nxc6 {[%clk
0:02:51.8]} 18... bxc6 {[%clk 0:01:28.3]} 0-1

[Event "*** Titled Tuesday 3|2 Blitz"]
[Site "Chess.com"]
[Date "2015.10.06"]
[Round "7"]
[White "FMCouch"]
[Black "bugsbunny444"]
[Result "0-1"]
[WhiteElo "2035"]
[BlackElo "2291"]
[TimeControl "180+2"]
[EndTime "12:26:51 PDT"]
[Termination "bugsbunny444 won by resignation"]

1. e4 {[%clk 0:03:01.9]} 1... e6 {[%clk 0:03:00.8]} 2. Nf3 {[%clk 0:03:00.8]}
2... d5 {[%clk 0:03:00]} 3. Nc3 {[%clk 0:03:01.9]} 3... Nf6 {[%clk 0:03:00.3]}
4. e5 {[%clk 0:03:02.1]} 4... Nfd7 {[%clk 0:03:01.5]} 5. d4 {[%clk 0:03:04]}
5... c5 {[%clk 0:03:03.1]} 6. dxc5 {[%clk 0:03:05.4]} 6... Nc6 {[%clk
0:03:04.8]} 7. Bf4 {[%clk 0:03:06.2]} 7... Bxc5 {[%clk 0:03:06.3]} 8. Bd3 {[%clk
0:03:07.7]} 8... f6 {[%clk 0:03:07.9]} 9. exf6 {[%clk 0:03:09.1]} 9... Qxf6
{[%clk 0:03:09.8]} 10. Qd2 {[%clk 0:03:08.2]} 10... O-O {[%clk 0:03:01.5]} 11.
Bg5 {[%clk 0:03:07.8]} 11... Qf7 {[%clk 0:02:48.8]} 12. Bh4 {[%clk 0:03:06.2]}
12... h6 {[%clk 0:02:41.9]} 13. Bg3 {[%clk 0:03:04.6]} 13... Kh8 {[%clk
0:02:26.5]} 14. O-O-O {[%clk 0:02:36.2]} 14... e5 {[%clk 0:02:25.7]} 15. Bb5
{[%clk 0:02:36.5]} 15... e4 {[%clk 0:02:15.9]} 16. Bxc6 {[%clk 0:02:17.7]} 16...
bxc6 {[%clk 0:02:13.5]} 17. Nd4 {[%clk 0:02:18.7]} 17... Qf6 {[%clk 0:01:56.2]}
18. Nb3 {[%clk 0:01:21.2]} 18... Bxf2 {[%clk 0:01:38.5]} 19. Rhf1 {[%clk
0:01:11.6]} 19... e3 {[%clk 0:01:38.3]} 20. Qe2 {[%clk 0:01:10]} 20... Ne5
{[%clk 0:01:24.8]} 21. Bxf2 {[%clk 0:00:19.5]} 21... exf2 {[%clk 0:01:25.8]} 22.
Nc5 {[%clk 0:00:18.6]} 22... Bg4 {[%clk 0:01:20.4]} 0-1

[Event "*** Titled Tuesday 3|2 Blitz"]
[Site "Chess.com"]
[Date "2015.10.06"]
[Round "7"]
[White "JustKid"]
[Black "dretch"]
[Result "0-1"]
[WhiteElo "2130"]
[BlackElo "2527"]
[TimeControl "180+2"]
[EndTime "12:27:04 PDT"]
[Termination "dretch won by resignation"]

1. d4 {[%clk 0:03:01.9]} 1... d5 {[%clk 0:03:01.1]} 2. c4 {[%clk 0:03:02.6]}
2... c6 {[%clk 0:03:02.3]} 3. cxd5 {[%clk 0:03:03.9]} 3... cxd5 {[%clk
0:03:03.8]} 4. Bf4 {[%clk 0:03:05.6]} 4... Nc6 {[%clk 0:03:04.2]} 5. e3 {[%clk
0:03:02.6]} 5... Nf6 {[%clk 0:03:04.3]} 6. Nc3 {[%clk 0:03:03.8]} 6... Bf5
{[%clk 0:03:04]} 7. Qb3 {[%clk 0:03:03.9]} 7... Na5 {[%clk 0:03:03.8]} 8. Qa4+
{[%clk 0:03:05.4]} 8... Bd7 {[%clk 0:03:04.9]} 9. Qc2 {[%clk 0:03:06.7]} 9... e6
{[%clk 0:03:04.6]} 10. Bd3 {[%clk 0:03:07.3]} 10... Nc6 {[%clk 0:03:04.4]} 11.
a3 {[%clk 0:03:07.8]} 11... Nh5 {[%clk 0:03:04.7]} 12. Bg3 {[%clk 0:03:06]}
12... Rc8 {[%clk 0:03:04.8]} 13. Nf3 {[%clk 0:03:06.1]} 13... Be7 {[%clk
0:03:05.3]} 14. O-O {[%clk 0:03:06.9]} 14... Nxg3 {[%clk 0:03:04.7]} 15. hxg3
{[%clk 0:03:07.9]} 15... g6 {[%clk 0:03:04.1]} 16. Rfc1 {[%clk 0:03:05.7]} 16...
O-O {[%clk 0:03:04.9]} 17. b4 {[%clk 0:03:04.6]} 17... a5 {[%clk 0:03:03.7]} 18.
b5 {[%clk 0:03:03.9]} 18... Nb8 {[%clk 0:03:04.6]} 19. Qb3 {[%clk 0:02:58.8]}
19... Be8 {[%clk 0:03:05.6]} 20. Ne5 {[%clk 0:02:56.4]} 20... Nd7 {[%clk
0:03:06.5]} 21. Nxd7 {[%clk 0:02:50.2]} 21... Bxd7 {[%clk 0:03:06.6]} 22. Na4
{[%clk 0:02:50]} 22... Rxc1+ {[%clk 0:03:06.9]} 23. Rxc1 {[%clk 0:02:51.9]}
23... b6 {[%clk 0:03:06.1]} 24. Qc3 {[%clk 0:02:34.8]} 24... Bd6 {[%clk
0:03:04.7]} 25. e4 {[%clk 0:02:28.1]} 25... dxe4 {[%clk 0:03:03.1]} 26. Bxe4
{[%clk 0:02:00.8]} 26... Bxb5 {[%clk 0:03:04]} 27. Bc6 {[%clk 0:02:01.2]} 27...
Bxc6 {[%clk 0:03:00.4]} 28. Qxc6 {[%clk 0:02:03.1]} 28... Bxa3 {[%clk
0:03:01.5]} 29. Rd1 {[%clk 0:01:51.1]} 29... Qe8 {[%clk 0:03:01.8]} 30. d5
{[%clk 0:01:39.7]} 30... exd5 {[%clk 0:02:59.8]} 31. Qxe8 {[%clk 0:01:40.2]}
31... Rxe8 {[%clk 0:03:01.1]} 32. Nxb6 {[%clk 0:01:42.1]} 32... Bc5 {[%clk
0:02:58.4]} 33. Nxd5 {[%clk 0:01:40]} 33... Re2 {[%clk 0:02:59.3]} 34. Rf1
{[%clk 0:01:02.6]} 34... Rc2 {[%clk 0:02:47.1]} 35. Ne3 {[%clk 0:00:58.8]} 35...
Rc3 {[%clk 0:02:43.6]} 36. Ra1 {[%clk 0:00:56.8]} 36... Ra3 {[%clk 0:02:39.8]}
37. Rxa3 {[%clk 0:00:49.8]} 37... Bxa3 {[%clk 0:02:40.7]} 38. Nc4 {[%clk
0:00:50.8]} 38... Bb4 {[%clk 0:02:41.5]} 39. Nb6 {[%clk 0:00:52]} 39... Kf8
{[%clk 0:02:40.9]} 40. Kf1 {[%clk 0:00:53.4]} 40... Ke7 {[%clk 0:02:41.4]} 41.
Ke2 {[%clk 0:00:55.1]} 41... Bc5 {[%clk 0:02:40.2]} 42. Na4 {[%clk 0:00:53.9]}
42... Bd4 {[%clk 0:02:40.7]} 43. f3 {[%clk 0:00:54.9]} 43... Kd6 {[%clk
0:02:41.9]} 44. Kd3 {[%clk 0:00:56.1]} 44... Kd5 {[%clk 0:02:43]} 45. g4 {[%clk
0:00:57.2]} 45... h6 {[%clk 0:02:43.6]} 46. f4 {[%clk 0:00:49]} 46... f5 {[%clk
0:02:44.7]} 47. gxf5 {[%clk 0:00:48.8]} 47... gxf5 {[%clk 0:02:45.9]} 48. Ke2
{[%clk 0:00:28.4]} 48... Kc4 {[%clk 0:02:45.3]} 0-1

[Event "*** Titled Tuesday 3|2 Blitz"]
[Site "Chess.com"]
[Date "2015.10.06"]
[Round "7"]
[White "metalbattler"]
[Black "PowerThinking2650"]
[Result "0-1"]
[WhiteElo "1949"]
[BlackElo "2086"]
[TimeControl "180+2"]
[EndTime "12:27:09 PDT"]
[Termination "PowerThinking2650 won by checkmate"]

1. e4 {[%clk 0:03:01.9]} 1... e5 {[%clk 0:02:57.6]} 2. Nf3 {[%clk 0:03:02.5]}
2... Nc6 {[%clk 0:02:55.7]} 3. d4 {[%clk 0:03:03.9]} 3... exd4 {[%clk
0:02:56.1]} 4. Bc4 {[%clk 0:03:04.2]} 4... Nf6 {[%clk 0:02:56.4]} 5. e5 {[%clk
0:03:05]} 5... d5 {[%clk 0:02:56.8]} 6. Bb5 {[%clk 0:03:05.6]} 6... Ne4 {[%clk
0:02:57.8]} 7. Nxd4 {[%clk 0:03:06.5]} 7... Bd7 {[%clk 0:02:59]} 8. Bxc6 {[%clk
0:03:07.5]} 8... bxc6 {[%clk 0:03:00.3]} 9. O-O {[%clk 0:03:08.2]} 9... Bc5
{[%clk 0:03:00.5]} 10. f3 {[%clk 0:03:07.5]} 10... Ng5 {[%clk 0:02:57]} 11. f4
{[%clk 0:03:08.6]} 11... Ne4 {[%clk 0:02:55.6]} 12. Be3 {[%clk 0:03:08.9]} 12...
Bb6 {[%clk 0:02:55.8]} 13. Nd2 {[%clk 0:03:08.8]} 13... Nxd2 {[%clk 0:02:48.5]}
14. Qxd2 {[%clk 0:03:10.7]} 14... O-O {[%clk 0:02:48.8]} 15. Nb3 {[%clk
0:03:11.1]} 15... Qe7 {[%clk 0:02:42.6]} 16. Qc3 {[%clk 0:03:10.6]} 16... f6
{[%clk 0:02:42.9]} 17. Nc5 {[%clk 0:03:05.4]} 17... fxe5 {[%clk 0:02:40.6]} 18.
fxe5 {[%clk 0:03:07.3]} 18... Bf5 {[%clk 0:02:26.2]} 19. b4 {[%clk 0:03:03.9]}
19... a5 {[%clk 0:02:14.8]} 20. a3 {[%clk 0:03:03.5]} 20... axb4 {[%clk
0:02:14.9]} 21. axb4 {[%clk 0:03:05.4]} 21... Bg6 {[%clk 0:02:02.1]} 22. Bd4
{[%clk 0:02:59.2]} 22... h6 {[%clk 0:01:56.1]} 23. Qd2 {[%clk 0:02:43.1]} 23...
Kh7 {[%clk 0:01:54.7]} 24. c3 {[%clk 0:02:41.5]} 24... Rxa1 {[%clk 0:01:40.5]}
25. Rxa1 {[%clk 0:02:40.1]} 25... Qh4 {[%clk 0:01:37.6]} 26. Nb3 {[%clk
0:02:27]} 26... Rf5 {[%clk 0:01:14.9]} 27. Re1 {[%clk 0:01:57.6]} 27... Rh5
{[%clk 0:01:13.8]} 28. g3 {[%clk 0:01:55.1]} 28... Rg5 {[%clk 0:01:10.8]} 29. e6
{[%clk 0:01:41]} 29... Be4 {[%clk 0:01:06.4]} 30. e7 {[%clk 0:01:07.7]} 30...
Rxg3+ {[%clk 0:01:06.5]} 31. hxg3 {[%clk 0:01:08.1]} 31... Qh1+ {[%clk
0:01:07.1]} 32. Kf2 {[%clk 0:01:09.1]} 32... Qg2+ {[%clk 0:01:06.5]} 33. Ke3
{[%clk 0:01:08.8]} 33... Qf3# {[%clk 0:01:07.3]} 0-1

[Event "*** Titled Tuesday 3|2 Blitz"]
[Site "Chess.com"]
[Date "2015.10.06"]
[Round "7"]
[White "Moltini"]
[Black "BIG_Pirate"]
[Result "0-1"]
[WhiteElo "2160"]
[BlackElo "2278"]
[TimeControl "180+2"]
[EndTime "12:27:46 PDT"]
[Termination "BIG_Pirate won by resignation"]

1. d4 {[%clk 0:03:01.9]} 1... Nf6 {[%clk 0:03:00.5]} 2. c4 {[%clk 0:03:03.1]}
2... e6 {[%clk 0:03:01.7]} 3. Nf3 {[%clk 0:03:03.5]} 3... b6 {[%clk 0:03:02]} 4.
a3 {[%clk 0:03:04.4]} 4... d5 {[%clk 0:02:58.5]} 5. Nc3 {[%clk 0:03:05.4]} 5...
Be7 {[%clk 0:02:52]} 6. Bg5 {[%clk 0:03:05.7]} 6... dxc4 {[%clk 0:02:45.9]} 7.
e3 {[%clk 0:03:05.1]} 7... Bb7 {[%clk 0:02:41.5]} 8. Bxc4 {[%clk 0:03:04.9]}
8... O-O {[%clk 0:02:42.4]} 9. O-O {[%clk 0:03:05.4]} 9... a6 {[%clk 0:02:43.9]}
10. Rc1 {[%clk 0:03:05.9]} 10... Nbd7 {[%clk 0:02:43.7]} 11. Qe2 {[%clk
0:03:03]} 11... c5 {[%clk 0:02:44.8]} 12. Rfd1 {[%clk 0:03:03.1]} 12... b5
{[%clk 0:02:46]} 13. Ba2 {[%clk 0:03:03.6]} 13... c4 {[%clk 0:02:42.9]} 14. e4
{[%clk 0:03:04.2]} 14... h6 {[%clk 0:02:33.3]} 15. Bh4 {[%clk 0:03:02.8]} 15...
Nxe4 {[%clk 0:02:15]} 16. Nxe4 {[%clk 0:02:38.5]} 16... Bxh4 {[%clk 0:02:15]}
17. Bb1 {[%clk 0:02:39.7]} 17... Be7 {[%clk 0:02:09.7]} 18. Ng3 {[%clk
0:02:38.6]} 18... Nf6 {[%clk 0:02:07.1]} 19. Ne5 {[%clk 0:02:39.4]} 19... Qd5
{[%clk 0:02:05.2]} 20. f3 {[%clk 0:02:38.4]} 20... Rfd8 {[%clk 0:01:57.1]} 21.
Ne4 {[%clk 0:02:37.2]} 21... Nd7 {[%clk 0:01:43.6]} 22. Nc3 {[%clk 0:02:37.3]}
22... Qd6 {[%clk 0:01:41.6]} 23. Qc2 {[%clk 0:02:32.2]} 23... Nf8 {[%clk
0:01:23.9]} 24. Ne4 {[%clk 0:02:29.9]} 24... Qb6 {[%clk 0:01:23.1]} 25. Qf2
{[%clk 0:02:27.7]} 25... f6 {[%clk 0:01:14.7]} 26. Ng4 {[%clk 0:02:11.1]} 26...
f5 {[%clk 0:01:15.3]} 27. Nxh6+ {[%clk 0:02:12]} 27... gxh6 {[%clk 0:01:11.9]}
28. Qg3+ {[%clk 0:02:10.6]} 28... Kf7 {[%clk 0:01:11]} 29. Nf2 {[%clk
0:02:10.1]} 29... Rxd4 {[%clk 0:01:06.1]} 30. Qh3 {[%clk 0:02:10]} 30... Bg5
{[%clk 0:01:02]} 31. Rxd4 {[%clk 0:02:08]} 31... Qxd4 {[%clk 0:01:00.2]} 32. Rd1
{[%clk 0:02:09.1]} 32... Qc5 {[%clk 0:00:53.9]} 33. Qh5+ {[%clk 0:02:03.4]}
33... Kg7 {[%clk 0:00:54.9]} 34. Kf1 {[%clk 0:02:03.6]} 34... Rd8 {[%clk
0:00:50.4]} 35. Re1 {[%clk 0:02:03.8]} 35... Rd2 {[%clk 0:00:48.2]} 36. Nh3
{[%clk 0:02:04.6]} 36... Rxb2 {[%clk 0:00:45.8]} 37. Qe8 {[%clk 0:01:55.5]}
37... c3 {[%clk 0:00:38]} 38. Bd3 {[%clk 0:01:56.2]} 38... c2 {[%clk 0:00:36.9]}
39. Nxg5 {[%clk 0:01:52.7]} 39... hxg5 {[%clk 0:00:36.7]} 40. Qd8 {[%clk
0:01:30.1]} 40... c1=Q {[%clk 0:00:36.5]} 41. Qxg5+ {[%clk 0:01:30.1]} 41...
Qxg5 {[%clk 0:00:36.9]} 0-1

[Event "*** Titled Tuesday 3|2 Blitz"]
[Site "Chess.com"]
[Date "2015.10.06"]
[Round "7"]
[White "Arashy_CC"]
[Black "Viaje"]
[Result "1/2-1/2"]
[WhiteElo "2360"]
[BlackElo "2204"]
[TimeControl "180+2"]
[EndTime "12:27:47 PDT"]
[Termination "Game drawn by repetition"]

1. c4 {[%clk 0:03:00.2]} 1... c5 {[%clk 0:03:00.2]} 2. Nc3 {[%clk 0:03:02.1]}
2... Nc6 {[%clk 0:03:00.6]} 3. Nf3 {[%clk 0:03:02.7]} 3... e5 {[%clk 0:02:59.6]}
4. d3 {[%clk 0:02:58.4]} 4... g6 {[%clk 0:03:00.1]} 5. g3 {[%clk 0:02:50.9]}
5... Bg7 {[%clk 0:03:00.9]} 6. Bg2 {[%clk 0:02:50]} 6... d6 {[%clk 0:03:02.4]}
7. Nd2 {[%clk 0:02:51]} 7... Nge7 {[%clk 0:03:01.2]} 8. Nf1 {[%clk 0:02:50.8]}
8... h5 {[%clk 0:03:00.2]} 9. h4 {[%clk 0:02:47.9]} 9... a6 {[%clk 0:02:59.9]}
10. Ne3 {[%clk 0:02:38.3]} 10... Rb8 {[%clk 0:03:00.4]} 11. a4 {[%clk
0:02:31.4]} 11... O-O {[%clk 0:02:56.8]} 12. Ned5 {[%clk 0:02:23.7]} 12... Be6
{[%clk 0:02:53.1]} 13. Bg5 {[%clk 0:02:20.6]} 13... f6 {[%clk 0:02:52.6]} 14.
Bd2 {[%clk 0:02:18.2]} 14... Nb4 {[%clk 0:02:30.1]} 15. Nxb4 {[%clk 0:02:00]}
15... cxb4 {[%clk 0:02:32]} 16. Nd5 {[%clk 0:02:01.8]} 16... a5 {[%clk 0:02:32]}
17. Be3 {[%clk 0:01:42]} 17... Nxd5 {[%clk 0:02:31.5]} 18. cxd5 {[%clk
0:01:27.6]} 18... Bd7 {[%clk 0:02:31.5]} 19. O-O {[%clk 0:01:17.2]} 19... f5
{[%clk 0:02:29.6]} 20. Bg5 {[%clk 0:01:13.9]} 20... Bf6 {[%clk 0:02:29.1]} 21.
Bxf6 {[%clk 0:01:14.7]} 21... Qxf6 {[%clk 0:02:30.7]} 22. Qd2 {[%clk 0:01:16.6]}
22... Rfc8 {[%clk 0:02:29.7]} 23. Qe3 {[%clk 0:01:12.9]} 23... Rc5 {[%clk
0:02:25.3]} 24. Rac1 {[%clk 0:01:00.6]} 24... Rbc8 {[%clk 0:02:22.6]} 25. Rxc5
{[%clk 0:01:01.4]} 25... Rxc5 {[%clk 0:02:23.4]} 26. b3 {[%clk 0:01:02.3]} 26...
b6 {[%clk 0:02:01.2]} 27. f4 {[%clk 0:00:58.8]} 27... exf4 {[%clk 0:01:58.2]}
28. Rxf4 {[%clk 0:00:23.6]} 28... Qe5 {[%clk 0:01:58.4]} 29. Qf2 {[%clk
0:00:23.7]} 29... Qb2 {[%clk 0:01:06.7]} 30. Qe3 {[%clk 0:00:17.9]} 30... Qe5
{[%clk 0:01:05.4]} 31. Qf2 {[%clk 0:00:18.3]} 31... Qb2 {[%clk 0:01:06.4]} 32.
Qe3 {[%clk 0:00:19.6]} 32... Qe5 {[%clk 0:00:59.4]} 1/2-1/2